bitfinex/quotes_SOLUSD_20220109
["timestamp","ask_amount","ask_price","bid_price","bid_amount"]
[1641744171419,10.76418,140.54,140.47,1.78207105]
[1641744171620,25.88782944,140.52,140.47,1.78207105]
[1641744171822,1.778,140.53,140.43,75.84987105]
[1641744172019,1.778,140.58,140.43,84.38987105]
[1641744172219,1.778,140.58,140.44,0.25]
[1641744172420,1.778,140.59,140.44,8.79]
[1641744172619,1.778,140.59,140.49,10.6781]
[1641744172825,28.24898156,140.57,140.49,10.6781]
[1641744173021,11.438298,140.56,140.45,37.3729]
[1641744173222,28.24898156,140.57,140.46,0.25]
[1641744173421,2.028,140.56,140.46,0.25]
[1641744174622,1.778,140.56,140.46,0.25]
[1641744175222,1.778,140.56,140.45,12.4587]
[1641744175223,0.25,140.55,140.45,12.4587]
[1641744175426,25.95417509,140.53,140.45,10.6807]
[1641744175926,25.95417509,140.53,140.44,12.46]
[1641744176127,25.95417509,140.53,140.45,0.25]
[1641744177628,25.95417509,140.53,140.45,10.9311]
[1641744177829,1.778,140.56,140.45,10.6811]
[1641744178032,1.778,140.56,140.46,0.25]
[1641744178229,2.00510155,140.58,140.46,8.54]
[1641744178432,2.00510155,140.6,140.47,0.25]
[1641744178629,2.00510155,140.6,140.52,10.6758]
[1641744178831,28.77998606,140.59,140.52,5.449]
[1641744179130,28.77998606,140.59,140.53,2.028]
[1641744179530,28.77998606,140.59,140.53,0.25]
[1641744179729,28.77998606,140.59,140.54,10.6744]
[1641744180532,28.77998606,140.59,140.52,1.778]
[1641744180732,28.77998606,140.59,140.44,144.82604636]
[1641744180733,0.25,140.58,140.49,10.6776]
[1641744180936,23.18171489,140.56,140.46,3.56007105]
[1641744181130,23.18171489,140.56,140.47,0.25]
[1641744181332,23.18171489,140.56,140.48,1.778]
[1641744182135,23.18171489,140.56,140.48,10.6786]
[1641744182935,0.25,140.55,140.48,10.6786]
[1641744183137,23.18171489,140.56,140.46,12.4579]
[1641744183338,2.028,140.55,140.45,1.778]
[1641744183535,2.028,140.55,140.45,0.25]
[1641744183736,2.028,140.55,140.44,26.63407105]
[1641744183938,2.028,140.55,140.44,24.852]
[1641744184336,2.028,140.55,140.45,10.6812]
[1641744184536,2.028,140.55,140.44,1.778]
[1641744184738,3.80882586,140.55,140.43,72.2898]
[1641744184938,28.37562545,140.53,140.43,72.2898]
[1641744185139,1.778,140.52,140.41,1.78207105]
[1641744185339,7.074484,140.51,140.4,96.86007105]
[1641744185542,31.33589722,140.49,140.4,95.08207105]
[1641744185941,16.06324,140.48,140.4,95.08207105]
[1641744186342,31.33589722,140.49,140.4,93.3]
[1641744186541,31.33589722,140.49,140.41,0.25]
[1641744187044,16.055261,140.48,140.41,0.25]
[1641744187643,31.33589722,140.49,140.41,0.25]
[1641744187843,31.33589722,140.49,140.41,12.7121]
[1641744188744,31.33589722,140.49,140.41,14.49292586]
[1641744189147,31.33589722,140.49,140.41,12.7121]
[1641744189748,1.778,140.55,140.42,10.32082586]
[1641744189948,7.984,140.56,140.43,2.028]
[1641744190148,7.984,140.56,140.44,8.54]
[1641744190350,7.984,140.56,140.45,1.778]
[1641744190648,7.984,140.56,140.45,17.13089691]
[1641744190852,27.86970632,140.55,140.45,17.13089691]
[1641744191050,27.86970632,140.55,140.5,10.677]
[1641744191449,27.86970632,140.55,140.51,0.25]
[1641744193052,27.86970632,140.55,140.5,10.677]
[1641744193752,27.86970632,140.55,140.48,10.6787]
[1641744193954,27.86970632,140.55,140.45,3.56007105]
[1641744194189,27.86970632,140.55,140.46,1.778]
[1641744194393,0.25,140.54,140.46,1.778]
[1641744194691,0.25,140.54,140.44,98.9346]
[1641744194889,0.25,140.54,140.44,109.6159]
[1641744195290,0.25,140.54,140.45,0.25]
[1641744195691,27.86970632,140.55,140.45,0.25]
[1641744195890,27.86970632,140.55,140.45,10.9311]
[1641744196493,0.25,140.54,140.45,10.6811]
[1641744196692,27.86970632,140.55,140.46,0.25]
[1641744197494,27.86970632,140.55,140.45,10.6811]
[1641744197694,2.028,140.54,140.45,10.6811]
[1641744197932,1.778,140.54,140.46,0.25]
[1641744198127,27.86970632,140.55,140.45,10.6811]
[1641744198128,29.64770632,140.55,140.45,12.4591]
[1641744198329,29.64770632,140.55,140.45,10.6811]
[1641744198731,29.64770632,140.55,140.44,1.778]
[1641744198732,20.544892,140.54,140.44,1.778]
[1641744198927,20.544892,140.54,140.43,86.22767105]
[1641744198928,22.072892,140.53,140.43,1.78207105]
[1641744199128,60.6207417,140.52,140.42,1.78207105]
[1641744199328,1.778,140.51,140.42,1.78207105]
[1641744199528,10.762263,140.51,140.42,1.78207105]
[1641744199730,0.25,140.5,140.41,24.592]
[1641744199930,0.25,140.5,140.42,0.25]
[1641744200329,28.86540776,140.48,140.42,0.25]
[1641744200729,28.86540776,140.48,140.41,0.25]
[1641744201928,3.78310155,140.54,140.41,10.9342]
[1641744202131,12.32310155,140.54,140.41,12.46502586]
[1641744202329,12.32310155,140.54,140.42,8.79]
[1641744202330,2.00510155,140.54,140.42,8.79]
[1641744202529,3.0,140.53,140.42,11.79]
[1641744202931,24.16648526,140.52,140.42,11.79]
[1641744203129,24.16648526,140.52,140.43,1.778]
[1641744203530,24.16648526,140.52,140.44,0.25]
[1641744203729,24.16648526,140.52,140.45,1.778]
[1641744203934,24.16648526,140.52,140.47,10.6794]
[1641744206537,24.16648526,140.52,140.45,10.6805]
[1641744206836,24.16648526,140.52,140.45,10.9305]
[1641744207635,24.16648526,140.52,140.46,10.32082586]
[1641744207835,1.778,140.54,140.49,10.6778]
[1641744208036,1.778,140.59,140.49,10.6778]
[1641744208236,1.778,140.59,140.5,0.25]
[1641744208438,2.00510155,140.6,140.5,0.25]
[1641744208636,8.977884,140.59,140.5,2.03082586]
[1641744208835,33.73179519,140.59,140.51,1.778]
[1641744209041,2.00510155,140.61,140.51,1.778]
[1641744209237,2.00510155,140.61,140.52,0.25]
[1641744209438,2.00510155,140.61,140.53,1.778]
[1641744209638,6.193077,140.6,140.53,1.778]
[1641744209839,6.193077,140.6,140.54,0.25]
[1641744210041,32.74809144,140.6,140.55,1.778]
[1641744210238,26.55501444,140.6,140.55,1.778]
[1641744210438,26.55501444,140.6,140.56,0.25]
[1641744210940,26.55501444,140.6,140.56,10.9228]
[1641744211540,26.55501444,140.6,140.56,10.6728]
[1641744211739,26.55501444,140.6,140.52,1.778]
[1641744211937,26.55501444,140.6,140.52,12.4533]
[1641744212140,26.55501444,140.6,140.52,10.6753]
[1641744212539,26.55501444,140.6,140.51,8.54]
[1641744212740,1.778,140.59,140.48,123.3768]
[1641744214044,26.55501444,140.6,140.5,10.6767]
[1641744214447,0.25,140.59,140.5,10.6767]
[1641744214842,26.55501444,140.6,140.51,10.9262]
[1641744215041,26.55501444,140.6,140.51,10.6762]
[1641744215242,26.55501444,140.6,140.52,0.25]
[1641744216546,26.55501444,140.6,140.51,10.6762]
[1641744216744,26.55501444,140.6,140.52,0.25]
[1641744217543,26.55501444,140.6,140.52,10.9256]
[1641744223352,26.55501444,140.6,140.52,0.25]
[1641744223753,26.55501444,140.6,140.51,0.25]
[1641744224284,26.55501444,140.6,140.5,10.6769]
[1641744224481,0.25,140.59,140.5,10.6769]
[1641744224780,45.088931,140.59,140.5,10.6769]
[1641744224983,27.24669021,140.57,140.5,10.6769]
[1641744225183,6.200088,140.56,140.5,10.6769]
[1641744225481,27.24669021,140.57,140.5,10.6769]
[1641744225881,27.24669021,140.57,140.51,0.25]
[1641744227586,27.24669021,140.57,140.5,10.6769]
[1641744227784,27.24669021,140.57,140.49,1.778]
[1641744227986,27.24669021,140.57,140.5,0.25]
[1641744228184,3.78310155,140.61,140.5,0.25]
[1641744228385,2.00510155,140.61,140.51,1.778]
[1641744228886,2.00510155,140.62,140.52,0.25]
[1641744229085,30.3701508,140.61,140.52,0.25]
[1641744229486,30.3701508,140.61,140.54,10.6736]
[1641744229684,30.3701508,140.61,140.54,5.496]
[1641744229886,30.3701508,140.61,140.55,2.028]
[1641744230889,30.3701508,140.61,140.56,10.6728]
[1641744231288,2.00510155,140.65,140.57,0.25]
[1641744232289,29.7477171,140.64,140.57,0.25]
[1641744232691,29.7477171,140.64,140.57,10.922]
[1641744232890,2.00510155,140.65,140.58,0.25]
[1641744233092,2.00510155,140.65,140.58,9.12682586]
[1641744233292,2.00510155,140.65,140.59,10.25]
[1641744233493,2.00510155,140.65,140.6,0.25]
[1641744233693,2.00510155,140.65,140.6,10.9193]
[1641744234093,467.3637949,140.67,140.6,10.9193]
[1641744234094,469.36889645,140.67,140.6,10.9193]
[1641744234292,469.36889645,140.67,140.6,12.6953]
[1641744234695,469.36889645,140.67,140.6,2.026]
[1641744234892,467.3637949,140.67,140.6,2.096]
[1641744236097,439.5,140.67,140.6,12.346]
[1641744236393,439.5,140.67,140.6,12.276]
[1641744237796,439.5,140.67,140.6,22.9458]
[1641744238295,439.5,140.67,140.6,22.6958]
[1641744239398,439.5,140.67,140.61,0.25]
[1641744239597,439.5,140.67,140.61,10.5]
[1641744240198,439.5,140.67,140.62,3.0]
[1641744240397,439.5,140.67,140.63,2.026]
[1641744240798,439.5,140.67,140.64,10.6667]
[1641744241001,439.5,140.67,140.65,6.31439994]
[1641744241198,439.5,140.67,140.62,1.776]
[1641744241399,439.5,140.67,140.61,12.026]
[1641744241698,439.5,140.67,140.62,0.25]
[1641744242943,439.5,140.67,140.61,10.25]
[1641744243331,439.5,140.67,140.61,20.9188]
[1641744244334,439.5,140.67,140.62,0.25]
[1641744244937,439.5,140.67,140.61,20.9188]
[1641744246334,439.5,140.67,140.62,0.25]
[1641744246937,439.5,140.67,140.61,0.25]
[1641744247338,439.5,140.67,140.6,2.026]
[1641744247639,439.5,140.67,140.6,1.776]
[1641744248237,439.5,140.67,140.6,12.4457]
[1641744248938,439.5,140.67,140.61,0.25]
[1641744251244,439.5,140.67,140.62,12.03082586]
[1641744251446,439.5,140.67,140.63,0.25]
[1641744251645,439.5,140.67,140.64,1.776]
[1641744252044,439.5,140.67,140.65,0.25]
[1641744252445,439.5,140.67,140.65,10.916]
[1641744252847,439.5,140.67,140.66,41.06439994]
[1641744253047,439.5,140.67,140.66,6.06439994]
[1641744253246,439.5,140.67,140.66,6.31439994]
[1641744253448,439.5,140.67,140.66,16.97959994]
[1641744253750,2.00510155,140.74,140.67,35.0]
[1641744253951,2.00510155,140.74,140.68,0.25]
[1641744254184,2.00510155,140.74,140.69,10.25]
[1641744254648,29.18257431,140.77,140.72,10.6607]
[1641744254949,2.00510155,140.78,140.72,17.1927]
[1641744255548,2.00510155,140.78,140.73,0.25]
[1641744255748,2.00510155,140.78,140.73,10.9098]
[1641744256354,29.60244232,140.8,140.73,10.9098]
[1641744256749,2.00510155,140.8,140.73,10.9098]
[1641744257550,2.00510155,140.79,140.74,10.25]
[1641744257752,2.00510155,140.79,140.76,10.6567]
[1641744257949,2.00510155,140.79,140.76,15.9547]
[1641744258150,2.00510155,140.82,140.77,6.06439994]
[1641744258553,2.00510155,140.82,140.78,0.25]
[1641744258750,2.00510155,140.82,140.78,10.9061]
[1641744259353,2.00510155,140.82,140.79,1.774]
[1641744259552,2.00510155,140.82,140.78,10.6561]
[1641744260358,2.00510155,140.85,140.79,0.25]
[1641744260553,2.00510155,140.85,140.79,10.9051]
[1641744261354,32.86342177,140.86,140.79,10.9051]
[1641744261554,32.86342177,140.86,140.79,10.9751]
[1641744261760,2.36177519,140.86,140.79,18.6761]
[1641744261955,3.94113487,140.89,140.85,0.31331405]
[1641744262154,3.94113487,140.89,140.87,10.6484]
[1641744262361,4.02076389,140.9,140.88,61.33839994]
[1641744262556,4.02076389,140.9,140.88,66.63339994]
[1641744263258,4.02076389,140.9,140.89,10.6478]
[1641744263459,0.07962902,140.9,140.89,21.1478]
[1641744263860,3.94113487,140.97,140.9,76.07]
[1641744264060,3.94113487,140.97,140.9,10.39962902]
[1641744264259,3.94113487,140.97,140.9,10.32]
[1641744264460,3.94113487,140.97,140.91,0.25]
[1641744264661,1.772,141.02,140.92,10.6453]
[1641744264861,25.36017843,141.01,140.9,10.25]
[1641744265062,1.772,141.0,140.9,10.25]
[1641744265261,4.772,141.0,140.9,10.25]
[1641744265760,25.36017843,141.01,140.92,10.6454]
[1641744265961,25.36017843,141.01,140.93,10.25]
[1641744266161,0.03791311,141.03,140.93,10.5]
[1641744266460,0.03791311,141.03,140.93,12.272]
[1641744266660,0.03791311,141.03,140.96,10.6424]
[1641744267461,0.03791311,141.03,140.97,0.25]
[1641744267970,0.03791311,141.03,140.97,10.8911]
[1641744268366,0.03791311,141.03,140.96,1.772]
[1641744268562,0.03791311,141.03,140.95,10.25]
[1641744269388,2.06873897,141.03,140.95,10.25]
[1641744269589,2.06873897,141.03,140.91,12.022]
[1641744269790,1.772,141.02,140.91,10.25]
[1641744270389,0.25,141.01,140.91,10.25]
[1641744270589,1.772,141.02,140.92,1.772]
[1641744270793,0.25,141.01,140.92,10.6448]
[1641744271191,1.772,141.02,140.92,10.6448]
[1641744271391,0.25,141.01,140.92,10.6448]
[1641744271591,1.772,141.02,140.93,0.25]
[1641744271792,0.03791311,141.03,140.93,0.25]
[1641744272290,0.03791311,141.03,140.94,10.25]
[1641744272491,3.03791311,141.03,140.95,0.25]
[1641744272693,0.03791311,141.03,140.94,12.022]
[1641744272891,3.0,141.02,140.94,12.022]
[1641744273090,3.0,141.01,140.94,12.022]
[1641744273491,0.25,141.0,140.94,22.6655]
[1641744273692,0.25,141.0,140.94,20.8935]
[1641744274393,0.25,141.01,140.94,20.8935]
[1641744274592,1.772,141.02,140.95,1.772]
[1641744274793,1.272,141.02,140.96,10.25]
[1641744274992,1.272,141.02,140.97,1.772]
[1641744275192,1.272,141.02,140.97,2.022]
[1641744275995,1.272,141.02,140.99,10.6402]
[1641744276197,1.272,141.02,141.0,7.83639994]
[1641744276395,1.272,141.02,141.0,6.06439994]
[1641744276597,0.03791311,141.03,141.0,6.06439994]
[1641744277696,0.03791311,141.03,140.96,10.25]
[1641744277898,0.03791311,141.03,141.01,3.03219997]
[1641744278099,0.03791311,141.03,140.97,0.25]
[1641744278899,0.03791311,141.03,140.97,10.8918]
[1641744279199,0.03791311,141.03,140.97,10.9618]
[1641744279399,0.03791311,141.03,140.97,0.07]
[1641744279600,1.80991311,141.03,140.97,0.07]
[1641744280001,1.80991311,141.03,140.94,0.25]
[1641744280202,0.03791311,141.03,140.95,1.772]
[1641744280401,0.03791311,141.03,140.96,0.25]
[1641744281202,0.03791311,141.03,140.95,1.842]
[1641744281404,0.03791311,141.03,140.93,12.022]
[1641744281602,1.772,141.02,140.93,10.25]
[1641744281803,1.772,141.02,140.9,1.772]
[1641744282001,0.25,141.01,140.9,1.772]
[1641744282201,12.4186,141.02,140.91,10.25]
[1641744282402,10.6466,141.02,140.92,1.772]
[1641744282602,10.6466,141.02,140.92,12.022]
[1641744283804,0.03791311,141.03,140.93,0.25]
[1641744284004,0.03791311,141.03,140.94,1.772]
[1641744284203,0.03791311,141.03,140.94,12.022]
[1641744284402,0.03791311,141.03,140.95,0.25]
[1641744284603,3.03791311,141.03,140.96,1.772]
[1641744284807,0.03791311,141.03,140.95,0.25]
[1641744285004,0.03791311,141.03,140.96,1.772]
[1641744285203,10.68341311,141.03,140.95,2.022]
[1641744285406,10.68341311,141.03,140.95,0.25]
[1641744286706,10.68341311,141.03,140.95,2.022]
[1641744287507,0.03791311,141.03,140.95,2.022]
[1641744287709,0.03791311,141.03,140.96,1.78082586]
[1641744287907,0.03791311,141.03,140.97,0.25]
[1641744288109,0.03791311,141.03,140.95,2.022]
[1641744288710,0.03791311,141.03,140.96,1.78082586]
[1641744288909,10.78,141.0,140.97,0.25]
[1641744289108,10.78,141.0,140.96,1.78082586]
[1641744289109,10.78,141.0,140.98,6.06439994]
[1641744289509,10.78,141.0,140.95,1.772]
[1641744290608,10.78,141.0,140.96,0.25]
[1641744290810,10.78,141.0,140.97,1.772]
[1641744291010,0.03791311,141.03,141.0,40.0]
[1641744291211,0.03791311,141.03,140.99,1.772]
[1641744291809,0.03791311,141.03,141.01,10.638]
[1641744292409,0.03791311,141.03,141.02,6.06439994]
[1641744294311,0.03791311,141.03,140.99,1.772]
[1641744294514,0.03791311,141.03,141.0,10.639]
[1641744294713,0.03791311,141.03,141.01,6.06439994]
[1641744294914,0.03791311,141.03,141.01,3.28219997]
[1641744295213,0.03791311,141.03,141.01,0.25]
[1641744295460,3.94113487,141.09,141.03,54.0]
[1641744295613,3.94113487,141.09,141.06,10.6339]
[1641744295813,3.94113487,141.1,141.06,10.6339]
[1641744296616,29.02327433,141.11,141.06,10.6339]
[1641744297314,29.02327433,141.11,141.04,1.772]
[1641744297517,29.02327433,141.11,141.02,12.022]
[1641744297716,29.02327433,141.11,141.03,0.25]
[1641744297917,29.02327433,141.11,141.03,10.5]
[1641744298215,29.02327433,141.11,141.05,10.6357]
[1641744299616,29.02327433,141.11,141.03,12.272]
[1641744299818,0.25,141.1,141.03,10.25]
[1641744300017,29.02327433,141.11,141.03,10.25]
[1641744300217,8.994812,141.1,141.03,10.25]
[1641744300417,29.02327433,141.11,141.04,2.092]
[1641744300920,29.02327433,141.11,141.04,0.25]
[1641744301518,29.02327433,141.11,141.03,0.25]
[1641744301820,29.02327433,141.11,141.04,1.772]
[1641744302217,29.02327433,141.11,141.05,0.25]
[1641744302418,29.02327433,141.11,141.04,1.772]
[1641744302618,29.02327433,141.11,141.02,1.772]
[1641744304022,29.02327433,141.11,141.03,0.25]
[1641744304223,29.02327433,141.11,141.03,10.887]
[1641744304426,8.992962,141.1,141.03,10.887]
[1641744304624,29.02327433,141.11,141.03,21.137]
[1641744304824,29.02327433,141.11,141.04,1.772]
[1641744305225,29.02327433,141.11,141.05,0.25]
[1641744305526,29.02327433,141.11,141.04,1.772]
[1641744306526,29.02327433,141.11,141.04,12.4085]
[1641744307227,29.02327433,141.11,141.04,1.772]
[1641744307525,20.445339,141.1,141.01,1.772]
[1641744308626,3.0,141.09,141.01,1.772]
[1641744309830,29.02327433,141.11,141.02,0.07]
[1641744311957,0.25,141.1,141.02,0.07]
[1641744312260,2.022,141.1,141.02,0.07]
[1641744312756,5.96313487,141.1,141.02,0.07]
[1641744313959,5.71313487,141.1,141.02,0.07]
[1641744314162,3.94113487,141.1,141.02,0.07]
[1641744314358,3.94113487,141.1,141.03,1.772]
[1641744314558,3.94113487,141.1,141.01,1.772]
[1641744314761,29.02327433,141.11,141.04,10.6363]
[1641744314962,29.02327433,141.11,141.03,8.024]
[1641744315161,29.02327433,141.11,141.04,1.772]
[1641744315960,29.02327433,141.11,141.04,12.4084]
[1641744316460,29.02327433,141.11,141.04,1.772]
[1641744316959,29.02327433,141.11,141.05,0.25]
[1641744317960,29.02327433,141.11,141.04,1.772]
[1641744318163,29.02327433,141.11,141.04,12.022]
[1641744319165,29.02327433,141.11,141.04,22.6584]
[1641744319366,32.9644092,141.11,141.05,0.25]
[1641744319565,32.9644092,141.11,141.04,12.4084]
[1641744321168,32.9644092,141.11,141.05,0.25]
[1641744321369,29.02327433,141.11,141.06,1.772]
[1641744321568,29.02327433,141.11,141.05,2.02]
[1641744321973,29.02327433,141.11,141.05,1.77]
[1641744322174,29.02327433,141.11,141.06,0.25]
[1641744322374,29.02327433,141.11,141.07,1.77]
[1641744322677,29.02327433,141.11,141.06,2.02]
[1641744323374,3.94113487,141.12,141.06,12.655]
[1641744323574,3.94113487,141.12,141.06,19.75782586]
[1641744324176,3.94113487,141.12,141.06,17.977]
[1641744324376,3.94113487,141.13,141.06,17.977]
[1641744324980,7.26802139,141.13,141.06,17.977]
[1641744325180,7.26802139,141.13,141.06,12.655]
[1641744325780,28.84521196,141.14,141.06,18.299]
[1641744325978,3.94113487,141.14,141.06,20.07982586]
[1641744326178,3.94113487,141.14,141.07,10.25]
[1641744326381,3.94113487,141.14,141.1,10.6307]
[1641744327182,27.08409646,141.15,141.1,10.6307]
[1641744328383,27.08409646,141.15,141.11,0.25]
[1641744328583,27.08409646,141.15,141.11,10.881]
[1641744328982,27.08409646,141.15,141.08,1.77]
[1641744329611,27.08409646,141.15,141.1,10.6319]
[1641744329811,27.08409646,141.15,141.08,1.77]
[1641744330417,23.14296159,141.15,141.09,0.25]
[1641744331016,27.08409646,141.15,141.09,0.25]
[1641744331216,27.08409646,141.15,141.08,1.77]
[1641744331417,27.08409646,141.15,141.05,1.77]
[1641744331616,0.25,141.14,141.04,1.77]
[1641744331816,0.25,141.14,141.03,76.9955]
[1641744332215,0.25,141.14,141.03,1.77]
[1641744332416,3.94113487,141.12,141.02,1.77]
[1641744332615,14.57953487,141.12,141.02,12.4075]
[1641744333117,3.94113487,141.11,141.02,12.4075]
[1641744334016,7.26180016,141.11,141.02,12.4075]
[1641744334417,7.26180016,141.11,141.02,22.6575]
[1641744334819,7.26180016,141.11,141.03,0.25]
[1641744335019,7.26180016,141.11,141.04,10.6363]
[1641744335216,7.26180016,141.11,141.04,12.4083]
[1641744335421,76.0,141.09,140.99,1.772]
[1641744335718,28.86498245,141.08,140.94,10.25]
[1641744336019,27.09298245,141.08,140.95,1.772]
[1641744336418,27.09298245,141.08,141.0,10.6394]
[1641744337918,27.09298245,141.08,140.97,1.772]
[1641744337919,27.09298245,141.08,141.01,12.4107]
[1641744338121,27.09298245,141.08,141.01,1.772]
[1641744338517,22.220243,141.07,141.01,1.772]
[1641744338718,2.022,141.07,140.96,10.25]
[1641744338919,2.022,141.07,140.96,20.892]
[1641744339119,3.0,141.06,140.96,20.892]
[1641744339319,3.0,141.06,140.91,47.555]
[1641744339520,2.022,141.05,140.93,10.25]
[1641744339721,2.022,141.05,140.91,10.25]
[1641744339918,2.022,141.05,140.92,10.6449]
[1641744339919,37.5059,141.05,140.92,10.6449]
[1641744340120,37.2559,141.05,140.92,10.6449]
[1641744340321,10.6455,141.02,140.92,10.6449]
[1641744340622,28.32368117,141.01,140.92,10.6449]
[1641744341820,38.96918117,141.01,140.92,10.6449]
[1641744342119,38.96918117,141.01,140.92,12.4179]
[1641744342824,64.61957986,141.0,140.84,15.72580567]
[1641744343021,10.6516,140.96,140.81,1.772]
[1641744343224,27.70988173,140.95,140.81,1.772]
[1641744343423,10.25,140.94,140.81,1.772]
[1641744343822,0.25,140.93,140.83,10.6523]
[1641744344023,20.454828,140.92,140.81,1.772]
[1641744344424,10.25,140.93,140.81,1.772]
[1641744345625,20.9021,140.93,140.83,10.6517]
[1641744345830,20.9021,140.93,140.84,1.774]
[1641744346026,20.9021,140.93,140.84,0.25]
[1641744346226,20.9021,140.93,140.83,1.774]
[1641744346427,0.25,140.92,140.83,1.774]
[1641744346627,0.25,140.92,140.8,1.774]
[1641744347129,45.7636,140.93,140.8,1.774]
[1641744347529,10.25,140.93,140.8,1.774]
[1641744347728,10.25,140.93,140.81,0.25]
[1641744347958,10.25,140.93,140.82,1.774]
[1641744348332,10.25,140.93,140.83,0.25]
[1641744348829,20.9019,140.93,140.84,10.6516]
[1641744349632,0.25,140.92,140.82,1.774]
[1641744349831,20.443206,140.91,140.82,1.774]
[1641744350030,1.774,140.9,140.82,1.774]
[1641744350231,10.6553,140.87,140.8,10.6543]
[1641744350433,10.6553,140.87,140.79,74.2574]
[1641744351132,10.6553,140.87,140.79,72.4834]
[1641744351436,10.6553,140.87,140.77,1.774]
[1641744351734,10.6553,140.87,140.76,1.774]
[1641744352132,1.774,140.88,140.76,3.55482586]
[1641744352332,28.92319676,140.89,140.82,10.6514]
[1641744352536,28.92319676,140.89,140.83,1.774]
[1641744352931,28.92319676,140.89,140.81,1.774]
[1641744353332,39.57779676,140.89,140.81,1.774]
[1641744354035,1.774,140.88,140.81,1.774]
[1641744354236,0.25,140.88,140.76,1.774]
[1641744354433,10.6578,140.84,140.76,12.431]
[1641744354836,30.45484034,140.83,140.76,12.431]
[1641744355736,30.45484034,140.83,140.75,1.774]
[1641744356534,30.45484034,140.83,140.72,79.1475]
[1641744356735,30.45484034,140.83,140.73,10.25]
[1641744356942,23.8925,140.87,140.78,10.6562]
[1641744357137,10.25,140.88,140.78,10.6562]
[1641744357337,10.25,140.88,140.79,2.024]
[1641744357938,25.32515079,140.87,140.79,12.6794]
[1641744358138,25.32515079,140.87,140.79,12.4294]
[1641744358340,25.32515079,140.87,140.79,1.774]
[1641744359941,35.98075079,140.87,140.79,1.774]
[1641744360741,15.778502,140.86,140.79,1.774]
[1641744360944,0.25,140.85,140.78,1.774]
[1641744361144,0.25,140.85,140.75,1.774]
[1641744361345,0.25,140.85,140.74,48.6167]
[1641744361549,0.25,140.85,140.72,1.774]
[1641744361550,10.25,140.84,140.72,1.774]
[1641744361759,10.25,140.84,140.7,77.8608]
[1641744361946,2.024,140.83,140.7,77.8608]
[1641744362243,10.6625,140.78,140.7,77.8608]
[1641744362445,18.0055,140.78,140.7,77.9308]
[1641744362644,18.0055,140.78,140.7,1.844]
[1641744362645,10.6625,140.78,140.7,1.844]
[1641744362843,22.8927519,140.81,140.7,1.844]
[1641744363071,33.1427519,140.81,140.7,1.844]
[1641744363269,10.6614,140.79,140.7,12.5062]
[1641744364472,33.1427519,140.81,140.7,12.5062]
[1641744364675,43.8033519,140.81,140.7,12.5062]
[1641744365973,10.9113,140.8,140.7,12.5062]
[1641744366375,10.6613,140.8,140.7,12.5062]
[1641744366972,10.6613,140.8,140.71,0.25]
[1641744367174,10.6613,140.8,140.72,1.776]
[1641744367375,10.6613,140.8,140.73,0.25]
[1641744367575,10.25,140.81,140.73,0.25]
[1641744367777,10.25,140.84,140.74,1.774]
[1641744368177,10.25,140.84,140.7,1.774]
[1641744368377,10.25,140.84,140.7,2.024]
[1641744368575,33.68733323,140.83,140.71,10.661]